[Event "Late-Titled-Tuesday-Blitz-June-18-2024"]
[Site "Chess.com"]
[Date "2024.06.18"]
[Round "5"]
[White "Crazy_girl99"]
[Black "YouShallNotPass001"]
[Result "1-0"]
[WhiteElo "2623"]
[BlackElo "2433"]
[TimeControl "180+1"]
[EndTime "14:57:29 PDT"]
[Termination "Crazy_girl99 won by resignation"]

1. e4 {[%clk 0:02:58.7]} 1... Nf6 {[%clk 0:03:00.9]} 2. e5 {[%clk 0:02:58.7]}
2... Ne4 {[%clk 0:03:01.5]} 3. d3 {[%clk 0:02:55.2]} 3... Nc5 {[%clk 0:03:00.9]}
4. Be3 {[%clk 0:02:54.5]} 4... e6 {[%clk 0:02:58.3]} 5. d4 {[%clk 0:02:50.7]}
5... Nca6 {[%clk 0:02:55.6]} 6. Nf3 {[%clk 0:02:49.7]} 6... d6 {[%clk
0:02:55.2]} 7. Bd3 {[%clk 0:02:49.9]} 7... dxe5 {[%clk 0:02:53.5]} 8. Nxe5
{[%clk 0:02:49.6]} 8... Nb4 {[%clk 0:02:51.9]} 9. Be4 {[%clk 0:02:46.7]} 9...
Nd5 {[%clk 0:02:51.1]} 10. O-O {[%clk 0:02:45.3]} 10... Nf6 {[%clk 0:02:50.3]}
11. Bf3 {[%clk 0:02:44]} 11... Be7 {[%clk 0:02:50.3]} 12. c4 {[%clk 0:02:43.8]}
12... O-O {[%clk 0:02:49.4]} 13. Nc3 {[%clk 0:02:44.1]} 13... Nbd7 {[%clk
0:02:46.6]} 14. Qc2 {[%clk 0:02:42]} 14... c5 {[%clk 0:02:41.9]} 15. Rad1 {[%clk
0:02:40]} 15... cxd4 {[%clk 0:02:41.4]} 16. Bxd4 {[%clk 0:02:40.9]} 16... a6
{[%clk 0:02:32.4]} 17. Rfe1 {[%clk 0:02:40.1]} 17... Qc7 {[%clk 0:02:31]} 18. b3
{[%clk 0:02:38.7]} 18... Bc5 {[%clk 0:02:29.8]} 19. Nxd7 {[%clk 0:02:19.6]}
19... Nxd7 {[%clk 0:02:28.2]} 20. Ne4 {[%clk 0:02:14.4]} 20... Bxd4 {[%clk
0:02:22.1]} 21. Rxd4 {[%clk 0:02:15.3]} 21... h6 {[%clk 0:02:16.1]} 22. Ng3
{[%clk 0:02:09.6]} 22... Ne5 {[%clk 0:02:14.2]} 23. Be4 {[%clk 0:02:07.7]} 23...
Bd7 {[%clk 0:02:10.1]} 24. Qe2 {[%clk 0:01:52]} 24... Nc6 {[%clk 0:02:05.2]} 25.
Rd2 {[%clk 0:01:48.2]} 25... Rae8 {[%clk 0:01:58.3]} 26. Bb1 {[%clk 0:01:46.2]}
26... Bc8 {[%clk 0:01:55]} 27. Nh5 {[%clk 0:01:43.9]} 27... e5 {[%clk
0:01:48.1]} 28. Qf3 {[%clk 0:01:38.7]} 28... f5 {[%clk 0:01:45.8]} 29. Ng3
{[%clk 0:01:23.9]} 29... e4 {[%clk 0:01:23.4]} 30. Qh5 {[%clk 0:01:17.9]} 30...
Ne5 {[%clk 0:01:18]} 31. Rd5 {[%clk 0:01:10.5]} 31... Be6 {[%clk 0:00:49.4]} 32.
Rdd1 {[%clk 0:01:09.3]} 32... Ng4 {[%clk 0:00:41.1]} 33. h3 {[%clk 0:01:04.1]}
33... Nf6 {[%clk 0:00:29.8]} 34. Qg6 {[%clk 0:01:03.6]} 34... Qf7 {[%clk
0:00:27.9]} 35. Qxf7+ {[%clk 0:01:00.1]} 35... Kxf7 {[%clk 0:00:28.8]} 36. Ne2
{[%clk 0:01:00.1]} 36... Rd8 {[%clk 0:00:27.7]} 37. Nd4 {[%clk 0:00:58.4]} 37...
Bc8 {[%clk 0:00:28.2]} 38. Bc2 {[%clk 0:00:57]} 38... Rfe8 {[%clk 0:00:25.9]}
39. g3 {[%clk 0:00:55.1]} 39... g5 {[%clk 0:00:25.3]} 40. b4 {[%clk 0:00:52.6]}
40... f4 {[%clk 0:00:25.1]} 41. g4 {[%clk 0:00:51.5]} 41... h5 {[%clk
0:00:23.9]} 42. gxh5 {[%clk 0:00:49.9]} 42... Bxh3 {[%clk 0:00:20.6]} 43. c5
{[%clk 0:00:49.7]} 43... Bg4 {[%clk 0:00:20.5]} 44. Bb3+ {[%clk 0:00:49.8]}
44... Kg7 {[%clk 0:00:19.9]} 45. Rd2 {[%clk 0:00:46]} 45... Bxh5 {[%clk
0:00:20]} 46. Ne6+ {[%clk 0:00:44.1]} 46... Rxe6 {[%clk 0:00:18.7]} 47. Rxd8
{[%clk 0:00:44.3]} 47... g4 {[%clk 0:00:18.3]} 48. Bxe6 {[%clk 0:00:44]} 1-0

[Event "Late-Titled-Tuesday-Blitz-June-18-2024"]
[Site "Chess.com"]
[Date "2024.06.18"]
[Round "5"]
[White "Sacbutt"]
[Black "A4RookA3"]
[Result "0-1"]
[WhiteElo "2308"]
[BlackElo "2431"]
[TimeControl "180+1"]
[EndTime "14:57:31 PDT"]
[Termination "A4RookA3 won by resignation"]

1. e4 {[%clk 0:02:55.5]} 1... c6 {[%clk 0:02:58.6]} 2. d4 {[%clk 0:02:55.5]}
2... d5 {[%clk 0:02:59.5]} 3. Nc3 {[%clk 0:02:55.2]} 3... dxe4 {[%clk
0:02:58.6]} 4. Nxe4 {[%clk 0:02:55.6]} 4... Nf6 {[%clk 0:02:59.5]} 5. Nxf6+
{[%clk 0:02:55]} 5... exf6 {[%clk 0:03:00.4]} 6. Nf3 {[%clk 0:02:55]} 6... Bd6
{[%clk 0:02:55.5]} 7. Bd3 {[%clk 0:02:55]} 7... O-O {[%clk 0:02:53.8]} 8. O-O
{[%clk 0:02:55.2]} 8... Bg4 {[%clk 0:02:53.8]} 9. h3 {[%clk 0:02:55]} 9... Bh5
{[%clk 0:02:53.4]} 10. Be3 {[%clk 0:02:54.1]} 10... Re8 {[%clk 0:02:52.5]} 11.
c4 {[%clk 0:02:49.1]} 11... Nd7 {[%clk 0:02:51.5]} 12. a3 {[%clk 0:02:33.9]}
12... Nf8 {[%clk 0:02:43.2]} 13. b4 {[%clk 0:02:28.5]} 13... a5 {[%clk
0:02:37.3]} 14. c5 {[%clk 0:02:25.3]} 14... Bc7 {[%clk 0:02:34]} 15. b5 {[%clk
0:02:24.8]} 15... Ne6 {[%clk 0:02:22]} 16. b6 {[%clk 0:02:14.2]} 16... Bb8
{[%clk 0:02:18.7]} 17. g4 {[%clk 0:01:39.9]} 17... Bg6 {[%clk 0:02:13.4]} 18.
Bxg6 {[%clk 0:01:39.3]} 18... hxg6 {[%clk 0:02:14.3]} 19. Qd2 {[%clk 0:01:33.4]}
19... f5 {[%clk 0:02:12.1]} 20. Qc3 {[%clk 0:01:14.2]} 20... Qd5 {[%clk
0:01:53.1]} 21. Ne1 {[%clk 0:01:00.8]} 21... fxg4 {[%clk 0:01:44.2]} 22. hxg4
{[%clk 0:00:58]} 22... f5 {[%clk 0:01:44.1]} 23. gxf5 {[%clk 0:00:50.9]} 23...
gxf5 {[%clk 0:01:43.2]} 24. f3 {[%clk 0:00:46]} 24... Kf7 {[%clk 0:01:37]} 25.
Rd1 {[%clk 0:00:41]} 25... f4 {[%clk 0:01:31.4]} 26. Bc1 {[%clk 0:00:30.5]}
26... Rh8 {[%clk 0:01:30]} 27. Ng2 {[%clk 0:00:16.7]} 27... Ng5 {[%clk
0:01:17.9]} 28. Kf2 {[%clk 0:00:12.3]} 28... Qe6 {[%clk 0:00:41.5]} 29. Nxf4
{[%clk 0:00:05.6]} 29... Bxf4 {[%clk 0:00:25.3]} 30. Bxf4 {[%clk 0:00:06.5]}
30... Nh3+ {[%clk 0:00:25.9]} 31. Kg3 {[%clk 0:00:06.6]} 31... Qg6+ {[%clk
0:00:25.7]} 0-1

[Event "Late-Titled-Tuesday-Blitz-June-18-2024"]
[Site "Chess.com"]
[Date "2024.06.18"]
[Round "5"]
[White "SHIVACalypso"]
[Black "JoakimVonAnd"]
[Result "1-0"]
[WhiteElo "2556"]
[BlackElo "2739"]
[TimeControl "180+1"]
[EndTime "14:57:33 PDT"]
[Termination "SHIVACalypso won on time"]

1. d4 {[%clk 0:03:00.9]} 1... d5 {[%clk 0:02:58.7]} 2. Nf3 {[%clk 0:03:01.4]}
2... e6 {[%clk 0:02:58.7]} 3. c4 {[%clk 0:03:01.7]} 3... Nf6 {[%clk 0:02:58.3]}
4. g3 {[%clk 0:03:02.1]} 4... c6 {[%clk 0:02:57.3]} 5. Bg2 {[%clk 0:03:02.1]}
5... dxc4 {[%clk 0:02:57.6]} 6. O-O {[%clk 0:03:01.3]} 6... b5 {[%clk
0:02:57.2]} 7. a4 {[%clk 0:02:58]} 7... Bb7 {[%clk 0:02:55.6]} 8. Ne5 {[%clk
0:02:54]} 8... a6 {[%clk 0:02:56]} 9. b3 {[%clk 0:02:42.7]} 9... cxb3 {[%clk
0:02:54.5]} 10. Qxb3 {[%clk 0:02:36.5]} 10... Qxd4 {[%clk 0:02:49.3]} 11. Bb2
{[%clk 0:02:33]} 11... Qb4 {[%clk 0:02:49.2]} 12. Qc2 {[%clk 0:02:33.2]} 12...
Qc5 {[%clk 0:02:47.5]} 13. Qb3 {[%clk 0:02:28.4]} 13... Be7 {[%clk 0:02:28.5]}
14. Rc1 {[%clk 0:02:26.8]} 14... Qd6 {[%clk 0:02:25.2]} 15. axb5 {[%clk
0:02:14.6]} 15... axb5 {[%clk 0:02:24]} 16. Rxa8 {[%clk 0:02:14.1]} 16... Bxa8
{[%clk 0:02:23.7]} 17. Qa2 {[%clk 0:02:14.6]} 17... O-O {[%clk 0:01:49.1]} 18.
Qxa8 {[%clk 0:02:13.7]} 18... Nbd7 {[%clk 0:01:48.3]} 19. Qa1 {[%clk 0:02:13.6]}
19... c5 {[%clk 0:01:32.3]} 20. Nc6 {[%clk 0:02:03.7]} 20... b4 {[%clk 0:01:23]}
21. Nxe7+ {[%clk 0:01:56.5]} 21... Qxe7 {[%clk 0:01:23]} 22. Nd2 {[%clk
0:01:57.2]} 22... Rc8 {[%clk 0:01:03.3]} 23. Qa6 {[%clk 0:01:54.9]} 23... Rb8
{[%clk 0:00:56.4]} 24. Nc4 {[%clk 0:01:52.8]} 24... Nd5 {[%clk 0:00:54.3]} 25.
Na5 {[%clk 0:01:48.4]} 25... Qf8 {[%clk 0:00:44.7]} 26. Nc6 {[%clk 0:01:21.4]}
26... Rb6 {[%clk 0:00:42.1]} 27. Qa7 {[%clk 0:01:13.5]} 27... Rxc6 {[%clk
0:00:35.9]} 28. Qxd7 {[%clk 0:01:13.3]} 28... Rc7 {[%clk 0:00:36.4]} 29. Qb5
{[%clk 0:01:10.5]} 29... Qc8 {[%clk 0:00:33.8]} 30. Bxd5 {[%clk 0:01:03.1]}
30... exd5 {[%clk 0:00:32.3]} 31. Bd4 {[%clk 0:01:03.7]} 31... b3 {[%clk
0:00:23.9]} 32. Rxc5 {[%clk 0:00:48.2]} 32... Rxc5 {[%clk 0:00:19.4]} 33. Bxc5
{[%clk 0:00:45.9]} 33... b2 {[%clk 0:00:13.6]} 34. Bd4 {[%clk 0:00:30.4]} 34...
Qc1+ {[%clk 0:00:03.5]} 35. Kg2 {[%clk 0:00:30.5]} 35... h6 {[%clk 0:00:04.4]}
36. Qxb2 {[%clk 0:00:29.4]} 1-0

[Event "Late-Titled-Tuesday-Blitz-June-18-2024"]
[Site "Chess.com"]
[Date "2024.06.18"]
[Round "5"]
[White "ReadySkate"]
[Black "topce"]
[Result "1-0"]
[WhiteElo "2776"]
[BlackElo "2525"]
[TimeControl "180+1"]
[EndTime "14:57:36 PDT"]
[Termination "ReadySkate won on time"]

1. d4 {[%clk 0:03:00.9]} 1... Nf6 {[%clk 0:02:59.1]} 2. c4 {[%clk 0:02:58.1]}
2... e6 {[%clk 0:02:58.3]} 3. Nc3 {[%clk 0:02:58.4]} 3... Bb4 {[%clk 0:02:56.6]}
4. a3 {[%clk 0:02:58.4]} 4... Bxc3+ {[%clk 0:02:56.3]} 5. bxc3 {[%clk
0:02:59.2]} 5... d5 {[%clk 0:02:50.8]} 6. cxd5 {[%clk 0:02:58.5]} 6... exd5
{[%clk 0:02:50.2]} 7. e3 {[%clk 0:02:58]} 7... O-O {[%clk 0:02:44.7]} 8. f3
{[%clk 0:02:57.8]} 8... b6 {[%clk 0:02:44.2]} 9. Bd3 {[%clk 0:02:58]} 9... Ba6
{[%clk 0:02:44]} 10. Ne2 {[%clk 0:02:58.6]} 10... Bxd3 {[%clk 0:02:43.4]} 11.
Qxd3 {[%clk 0:02:59.5]} 11... Re8 {[%clk 0:02:43.4]} 12. O-O {[%clk 0:02:59.8]}
12... c5 {[%clk 0:02:43.5]} 13. Ng3 {[%clk 0:02:59.6]} 13... c4 {[%clk
0:02:42.2]} 14. Qc2 {[%clk 0:02:58.5]} 14... h5 {[%clk 0:02:33.1]} 15. Re1
{[%clk 0:02:47.2]} 15... h4 {[%clk 0:02:31.9]} 16. Nf5 {[%clk 0:02:47]} 16...
Nh7 {[%clk 0:02:18.2]} 17. e4 {[%clk 0:02:43.7]} 17... Nc6 {[%clk 0:02:04.8]}
18. e5 {[%clk 0:02:39.5]} 18... Qd7 {[%clk 0:01:34.8]} 19. Nxh4 {[%clk
0:02:29.7]} 19... Ne7 {[%clk 0:01:25.8]} 20. f4 {[%clk 0:02:26.3]} 20... Qg4
{[%clk 0:01:11.3]} 21. Qf2 {[%clk 0:02:24.2]} 21... Nf5 {[%clk 0:00:58.6]} 22.
Nxf5 {[%clk 0:02:22.5]} 22... Qxf5 {[%clk 0:00:59.5]} 23. Qf3 {[%clk 0:02:23]}
23... Rad8 {[%clk 0:00:54.7]} 24. g4 {[%clk 0:02:14.4]} 24... Qc2 {[%clk
0:00:52.4]} 25. f5 {[%clk 0:02:07.8]} 25... Nf6 {[%clk 0:00:44.2]} 26. Bg5
{[%clk 0:02:05.3]} 26... Ne4 {[%clk 0:00:40.8]} 27. Bxd8 {[%clk 0:02:02.9]}
27... Rxd8 {[%clk 0:00:38.4]} 28. Rac1 {[%clk 0:01:54.1]} 28... Qb2 {[%clk
0:00:37.6]} 29. Qe2 {[%clk 0:01:44.2]} 29... Qxa3 {[%clk 0:00:31.8]} 30. Qc2
{[%clk 0:01:41.5]} 30... Qb3 {[%clk 0:00:20]} 31. Rxe4 {[%clk 0:01:31.8]} 31...
Qxc2 {[%clk 0:00:19.7]} 32. Rxc2 {[%clk 0:01:31.6]} 32... dxe4 {[%clk
0:00:20.6]} 33. Ra2 {[%clk 0:01:30.9]} 33... a5 {[%clk 0:00:20.3]} 34. Kf2
{[%clk 0:01:30.1]} 34... b5 {[%clk 0:00:13.8]} 35. Ke3 {[%clk 0:01:30.2]} 35...
b4 {[%clk 0:00:13.6]} 36. Rxa5 {[%clk 0:01:30.1]} 36... Rc8 {[%clk 0:00:07.4]}
37. Kxe4 {[%clk 0:01:25.1]} 37... bxc3 {[%clk 0:00:07]} 38. Ra3 {[%clk 0:01:25]}
38... c2 {[%clk 0:00:06.5]} 39. Rc3 {[%clk 0:01:24.9]} 39... Kf8 {[%clk
0:00:06.6]} 40. Rxc2 {[%clk 0:01:25.2]} 40... Ke7 {[%clk 0:00:07.5]} 41. d5
{[%clk 0:01:25.3]} 41... Kd7 {[%clk 0:00:07.4]} 42. Kd4 {[%clk 0:01:25.5]} 42...
Rb8 {[%clk 0:00:07.6]} 43. Rxc4 {[%clk 0:01:26]} 43... Rb2 {[%clk 0:00:07.8]}
44. e6+ {[%clk 0:01:26.3]} 44... fxe6 {[%clk 0:00:07.6]} 45. fxe6+ {[%clk
0:01:27.2]} 45... Kd6 {[%clk 0:00:08.2]} 46. Rc6+ {[%clk 0:01:27.7]} 46... Ke7
{[%clk 0:00:08.5]} 47. Rc7+ {[%clk 0:01:28.3]} 47... Kd8 {[%clk 0:00:07.9]} 48.
Rd7+ {[%clk 0:01:27.7]} 48... Ke8 {[%clk 0:00:07.9]} 49. Ke5 {[%clk 0:01:27.9]}
49... Rxh2 {[%clk 0:00:07.4]} 50. Kd6 {[%clk 0:01:28.4]} 50... Ra2 {[%clk
0:00:06.3]} 51. Rxg7 {[%clk 0:01:26.4]} 51... Ra6+ {[%clk 0:00:05.9]} 52. Ke5
{[%clk 0:01:26.9]} 52... Kf8 {[%clk 0:00:05.5]} 53. Rb7 {[%clk 0:01:26.2]} 53...
Ra5 {[%clk 0:00:03]} 54. Kf6 {[%clk 0:01:25.8]} 54... Kg8 {[%clk 0:00:02.3]} 55.
e7 {[%clk 0:01:25.1]} 55... Ra8 {[%clk 0:00:02.1]} 56. d6 {[%clk 0:01:24.3]} 1-0

[Event "Late-Titled-Tuesday-Blitz-June-18-2024"]
[Site "Chess.com"]
[Date "2024.06.18"]
[Round "5"]
[White "hoshiboshi"]
[Black "rdarruda"]
[Result "0-1"]
[WhiteElo "2230"]
[BlackElo "2561"]
[TimeControl "180+1"]
[EndTime "14:57:36 PDT"]
[Termination "rdarruda won by resignation"]

1. e4 {[%clk 0:03:00.9]} 1... c5 {[%clk 0:02:59.4]} 2. Nf3 {[%clk 0:03:00.6]}
2... Nc6 {[%clk 0:02:59.3]} 3. Bb5 {[%clk 0:02:59.6]} 3... g6 {[%clk 0:02:58.7]}
4. O-O {[%clk 0:02:55.5]} 4... Bg7 {[%clk 0:02:56.4]} 5. Re1 {[%clk 0:02:53.3]}
5... e5 {[%clk 0:02:56.3]} 6. Bxc6 {[%clk 0:02:49.3]} 6... bxc6 {[%clk
0:02:55.8]} 7. c3 {[%clk 0:02:45.7]} 7... Ne7 {[%clk 0:02:54.8]} 8. d4 {[%clk
0:02:45]} 8... cxd4 {[%clk 0:02:54.8]} 9. cxd4 {[%clk 0:02:45.4]} 9... exd4
{[%clk 0:02:54.9]} 10. Nxd4 {[%clk 0:02:45.7]} 10... Qb6 {[%clk 0:02:50.1]} 11.
e5 {[%clk 0:02:26.3]} 11... O-O {[%clk 0:02:44.9]} 12. Nc3 {[%clk 0:02:25]}
12... Qc7 {[%clk 0:02:29.8]} 13. Bf4 {[%clk 0:02:17]} 13... Ba6 {[%clk
0:01:59.6]} 14. Qd2 {[%clk 0:02:13.1]} 14... Qa5 {[%clk 0:01:51.7]} 15. Nb3
{[%clk 0:01:58.6]} 15... Qd8 {[%clk 0:01:34.5]} 16. Rad1 {[%clk 0:01:57.4]}
16... Bc4 {[%clk 0:01:25.4]} 17. Nc5 {[%clk 0:01:52.3]} 17... Be6 {[%clk
0:01:21.8]} 18. N5e4 {[%clk 0:01:47.4]} 18... Nd5 {[%clk 0:01:19.1]} 19. Bg3
{[%clk 0:01:26.3]} 19... f5 {[%clk 0:01:13.6]} 20. Nxd5 {[%clk 0:01:16]} 20...
Bxd5 {[%clk 0:01:08.8]} 21. Nd6 {[%clk 0:01:14.1]} 21... Bxa2 {[%clk 0:01:05.1]}
22. Ra1 {[%clk 0:01:05.7]} 22... Be6 {[%clk 0:01:04.6]} 23. f4 {[%clk
0:00:57.5]} 23... Rb8 {[%clk 0:01:00.8]} 24. Bf2 {[%clk 0:00:54.5]} 24... a5
{[%clk 0:00:48.4]} 25. Rxa5 {[%clk 0:00:52.3]} 25... Rxb2 {[%clk 0:00:47.9]} 26.
Qxb2 {[%clk 0:00:43.7]} 26... Qxa5 {[%clk 0:00:47.7]} 27. Ra1 {[%clk 0:00:41]}
27... Qd5 {[%clk 0:00:45.9]} 28. h3 {[%clk 0:00:28.7]} 28... g5 {[%clk 0:00:46]}
29. Be3 {[%clk 0:00:24.1]} 29... Qd3 {[%clk 0:00:34.3]} 30. Qf2 {[%clk
0:00:20.5]} 30... Rb8 {[%clk 0:00:31.8]} 31. Kh2 {[%clk 0:00:15.9]} 31... Qc3
{[%clk 0:00:26.8]} 32. Rc1 {[%clk 0:00:14.8]} 32... Qb2 {[%clk 0:00:25.6]} 33.
Bd4 {[%clk 0:00:13.5]} 33... Qxc1 {[%clk 0:00:24.5]} 34. fxg5 {[%clk 0:00:12.8]}
34... Rb1 {[%clk 0:00:21.7]} 35. Qh4 {[%clk 0:00:05.3]} 35... Qh1+ {[%clk
0:00:20.7]} 36. Kg3 {[%clk 0:00:05.4]} 36... Qe1+ {[%clk 0:00:20.6]} 37. Bf2
{[%clk 0:00:05.6]} 37... Bxe5+ {[%clk 0:00:20.7]} 0-1

[Event "Late-Titled-Tuesday-Blitz-June-18-2024"]
[Site "Chess.com"]
[Date "2024.06.18"]
[Round "5"]
[White "Tolya2"]
[Black "InadaC"]
[Result "0-1"]
[WhiteElo "2452"]
[BlackElo "2286"]
[TimeControl "180+1"]
[EndTime "14:57:37 PDT"]
[Termination "InadaC won by checkmate"]

1. Nf3 {[%clk 0:03:00.9]} 1... Nf6 {[%clk 0:02:43]} 2. c4 {[%clk 0:02:59.3]}
2... e6 {[%clk 0:02:42.1]} 3. g3 {[%clk 0:02:58]} 3... d5 {[%clk 0:02:41.5]} 4.
Bg2 {[%clk 0:02:57.4]} 4... Be7 {[%clk 0:02:41.2]} 5. O-O {[%clk 0:02:56.7]}
5... O-O {[%clk 0:02:41.4]} 6. d4 {[%clk 0:02:56.6]} 6... dxc4 {[%clk
0:02:40.3]} 7. Qc2 {[%clk 0:02:56.3]} 7... c6 {[%clk 0:02:40.3]} 8. Qxc4 {[%clk
0:02:46.5]} 8... Nbd7 {[%clk 0:02:40.4]} 9. Qc2 {[%clk 0:02:45.6]} 9... Nb6
{[%clk 0:02:40.5]} 10. Rd1 {[%clk 0:02:45.1]} 10... Nfd5 {[%clk 0:02:40.4]} 11.
a3 {[%clk 0:02:44]} 11... Bf6 {[%clk 0:02:40]} 12. e4 {[%clk 0:02:43.1]} 12...
Nc7 {[%clk 0:02:38.6]} 13. Nc3 {[%clk 0:02:39.3]} 13... Re8 {[%clk 0:02:32]} 14.
Bf4 {[%clk 0:02:35.5]} 14... Na6 {[%clk 0:02:27.8]} 15. h4 {[%clk 0:02:30.4]}
15... Bd7 {[%clk 0:02:19.4]} 16. Rac1 {[%clk 0:02:28.9]} 16... Rc8 {[%clk
0:02:18.7]} 17. Qe2 {[%clk 0:02:28.3]} 17... Be7 {[%clk 0:02:07.5]} 18. Ne5
{[%clk 0:02:22.8]} 18... Bf6 {[%clk 0:02:06.5]} 19. Nxd7 {[%clk 0:02:20.9]}
19... Qxd7 {[%clk 0:02:05.4]} 20. b4 {[%clk 0:02:13.4]} 20... Nc7 {[%clk
0:01:53.3]} 21. Qa2 {[%clk 0:02:07.9]} 21... Rcd8 {[%clk 0:01:37.7]} 22. Be3
{[%clk 0:02:07]} 22... h5 {[%clk 0:01:33.7]} 23. Qb3 {[%clk 0:02:05.8]} 23...
Qe7 {[%clk 0:01:31.3]} 24. Na4 {[%clk 0:02:04.8]} 24... Nxa4 {[%clk 0:01:30.2]}
25. Qxa4 {[%clk 0:02:04.7]} 25... Nb5 {[%clk 0:01:29.7]} 26. Rc4 {[%clk
0:01:51]} 26... a6 {[%clk 0:01:25]} 27. Qb3 {[%clk 0:01:50.4]} 27... Nd6 {[%clk
0:01:15.5]} 28. Rc2 {[%clk 0:01:47.6]} 28... e5 {[%clk 0:01:15.6]} 29. d5 {[%clk
0:01:45.2]} 29... cxd5 {[%clk 0:01:15.7]} 30. Rxd5 {[%clk 0:01:44.1]} 30... Nb5
{[%clk 0:01:13.2]} 31. Bc5 {[%clk 0:01:37.7]} 31... Qe6 {[%clk 0:01:10.2]} 32.
Kh2 {[%clk 0:01:33.5]} 32... b6 {[%clk 0:01:06.7]} 33. Bh3 {[%clk 0:01:27.8]}
33... Qxd5 {[%clk 0:00:34]} 34. exd5 {[%clk 0:01:24]} 34... bxc5 {[%clk
0:00:34.4]} 35. bxc5 {[%clk 0:01:23.9]} 35... Nd4 {[%clk 0:00:34.4]} 36. Qb6
{[%clk 0:01:19.9]} 36... Nxc2 {[%clk 0:00:34.1]} 37. Qxf6 {[%clk 0:01:18.3]}
37... gxf6 {[%clk 0:00:32.5]} 38. d6 {[%clk 0:01:18.4]} 38... Nd4 {[%clk
0:00:30.7]} 39. Bg2 {[%clk 0:01:16.3]} 39... e4 {[%clk 0:00:30.3]} 40. Bf1
{[%clk 0:01:15.4]} 40... Re5 {[%clk 0:00:28]} 41. Bxa6 {[%clk 0:01:14.3]} 41...
Rxc5 {[%clk 0:00:28.2]} 42. Bb7 {[%clk 0:01:13.5]} 42... Nf3+ {[%clk 0:00:27.2]}
43. Kg2 {[%clk 0:01:12.6]} 43... f5 {[%clk 0:00:27.7]} 44. g4 {[%clk 0:01:11.9]}
44... hxg4 {[%clk 0:00:26.6]} 45. Kg3 {[%clk 0:01:10.4]} 45... Rxd6 {[%clk
0:00:26.3]} 46. a4 {[%clk 0:01:09.5]} 46... Kg7 {[%clk 0:00:25.9]} 47. Kf4
{[%clk 0:01:08.5]} 47... Kf6 {[%clk 0:00:24.4]} 48. a5 {[%clk 0:01:05.5]} 48...
Rxa5 {[%clk 0:00:20.5]} 49. h5 {[%clk 0:01:05.8]} 49... Ne5 {[%clk 0:00:20.5]}
50. Bc8 {[%clk 0:01:04.4]} 50... Re6 {[%clk 0:00:19.1]} 51. h6 {[%clk
0:01:03.3]} 51... Ra3 {[%clk 0:00:18.1]} 52. Bxe6 {[%clk 0:00:40.9]} 52... Rf3#
{[%clk 0:00:17]} 0-1

[Event "Late-Titled-Tuesday-Blitz-June-18-2024"]
[Site "Chess.com"]
[Date "2024.06.18"]
[Round "5"]
[White "ChessSG1"]
[Black "nitpicker"]
[Result "1-0"]
[WhiteElo "2487"]
[BlackElo "2344"]
[TimeControl "180+1"]
[EndTime "14:57:39 PDT"]
[Termination "ChessSG1 won on time"]

1. c4 {[%clk 0:03:00.9]} 1... e5 {[%clk 0:02:59.3]} 2. g3 {[%clk 0:03:01]} 2...
Nf6 {[%clk 0:02:59.1]} 3. Bg2 {[%clk 0:03:01.2]} 3... d5 {[%clk 0:02:59.5]} 4.
cxd5 {[%clk 0:03:01.1]} 4... Nxd5 {[%clk 0:03:00.4]} 5. Nc3 {[%clk 0:03:01.3]}
5... Nf6 {[%clk 0:03:00.2]} 6. Nf3 {[%clk 0:02:59.2]} 6... Nc6 {[%clk
0:02:59.7]} 7. O-O {[%clk 0:02:58]} 7... Be7 {[%clk 0:02:58.9]} 8. b4 {[%clk
0:02:51.2]} 8... a6 {[%clk 0:02:41.4]} 9. a3 {[%clk 0:02:46.5]} 9... O-O {[%clk
0:02:39.5]} 10. Bb2 {[%clk 0:02:47]} 10... h6 {[%clk 0:02:36.3]} 11. d3 {[%clk
0:02:47.2]} 11... Bf5 {[%clk 0:02:13.4]} 12. Rc1 {[%clk 0:02:28]} 12... Re8
{[%clk 0:02:10.2]} 13. Na4 {[%clk 0:02:24.9]} 13... Bd6 {[%clk 0:02:05.9]} 14.
Nd2 {[%clk 0:02:20.7]} 14... Bd7 {[%clk 0:01:57.1]} 15. Nc5 {[%clk 0:02:18.5]}
15... Bxc5 {[%clk 0:01:55.7]} 16. bxc5 {[%clk 0:02:01]} 16... Rb8 {[%clk
0:01:52.3]} 17. Nc4 {[%clk 0:01:43.1]} 17... Re7 {[%clk 0:01:12.9]} 18. Bxc6
{[%clk 0:01:14.2]} 18... Bxc6 {[%clk 0:01:12]} 19. Bxe5 {[%clk 0:01:10.7]} 19...
Qd5 {[%clk 0:01:04.1]} 20. e4 {[%clk 0:01:10.3]} 20... Qxc5 {[%clk 0:00:54.7]}
21. d4 {[%clk 0:00:51.9]} 21... Qb5 {[%clk 0:00:48.4]} 22. d5 {[%clk 0:00:52.2]}
22... Be8 {[%clk 0:00:44]} 23. Bxf6 {[%clk 0:00:37.4]} 23... gxf6 {[%clk
0:00:43.6]} 24. d6 {[%clk 0:00:37.9]} 24... cxd6 {[%clk 0:00:34.1]} 25. Nxd6
{[%clk 0:00:38.8]} 25... Qe5 {[%clk 0:00:24.6]} 26. Nf5 {[%clk 0:00:34.9]} 26...
Qxe4 {[%clk 0:00:15.1]} 27. Nxe7+ {[%clk 0:00:34.4]} 27... Qxe7 {[%clk
0:00:15.2]} 28. Qg4+ {[%clk 0:00:33.9]} 28... Kh8 {[%clk 0:00:12.2]} 29. Rfe1
{[%clk 0:00:34.4]} 29... Qxa3 {[%clk 0:00:08.6]} 30. Qf4 {[%clk 0:00:33.7]}
30... Kg7 {[%clk 0:00:07.5]} 31. Qxb8 {[%clk 0:00:32.5]} 31... Bc6 {[%clk
0:00:07.2]} 32. Qf4 {[%clk 0:00:28]} 32... Qb3 {[%clk 0:00:03.7]} 33. Qg4+
{[%clk 0:00:22.3]} 33... Kf8 {[%clk 0:00:02.5]} 34. Rxc6 {[%clk 0:00:20.6]}
34... bxc6 {[%clk 0:00:01.7]} 35. Qc8+ {[%clk 0:00:21.3]} 35... Kg7 {[%clk
0:00:01.8]} 36. Qxc6 {[%clk 0:00:21.9]} 36... Qb4 {[%clk 0:00:01.7]} 37. Qe4
{[%clk 0:00:20.6]} 1-0